[Event "Titled Tuesday Blitz May 23 Early 2023"]
[White "Boyer, Mahel"]
[Black "LeoLV10"]
[WhiteFideId "45102422"]
[WhiteElo "2439"]
[BlackElo "2378"]
[Result "1-0"]
[Round "02"]
[TimeControl "180+2"]
[Date "2023.05.23"]
[WhiteClock "0:00:04"]
[BlackClock "0:00:57"]

1. e4 {[%clk 0:03:00]}  c6 {[%clk 0:02:58]} 2. Nf3 {[%clk 0:02:58]}  d5 {[%clk 0:02:58]} 3. Nc3 {[%clk 0:02:58]}  Bg4 {[%clk 0:02:57]} 4. h3 {[%clk 0:02:57]}  Bxf3 {[%clk 0:02:58]} 5. Qxf3 {[%clk 0:02:58]}  e6 {[%clk 0:02:58]} 6. g3 {[%clk 0:02:57]}  Nd7 {[%clk 0:02:59]} 7. Bg2 {[%clk 0:02:55]}  g6 {[%clk 0:02:57]} 8. O-O {[%clk 0:02:55]}  Bg7 {[%clk 0:02:57]} 9. b3 {[%clk 0:02:50]}  Ne7 {[%clk 0:02:57]} 10. Ba3 {[%clk 0:02:51]}  O-O {[%clk 0:02:56]} 11. Rae1 {[%clk 0:02:50]}  d4 {[%clk 0:02:56]} 12. Nd1 {[%clk 0:02:45]}  c5 {[%clk 0:02:56]} 13. Bc1 {[%clk 0:02:41]}  Nc6 {[%clk 0:02:53]} 14. Qe2 {[%clk 0:02:40]}  Qc7 {[%clk 0:02:50]} 15. a4 {[%clk 0:02:31]}  Rae8 {[%clk 0:02:49]} 16. f4 {[%clk 0:02:30]}  a6 {[%clk 0:02:43]} 17. Nf2 {[%clk 0:02:22]}  Nb4 {[%clk 0:02:42]} 18. d3 {[%clk 0:01:51]}  a5 {[%clk 0:02:36]} 19. h4 {[%clk 0:01:30]}  Nc6 {[%clk 0:02:16]} 20. h5 {[%clk 0:01:29]}  f5 {[%clk 0:02:10]} 21. hxg6 {[%clk 0:01:07]}  hxg6 {[%clk 0:02:09]} 22. g4 {[%clk 0:01:08]}  Nf6 {[%clk 0:02:05]} 23. g5 {[%clk 0:01:00]}  Nh5 {[%clk 0:02:01]} 24. exf5 {[%clk 0:00:57]}  exf5 {[%clk 0:01:56]} 25. Qxe8 {[%clk 0:00:30]}  Rxe8 {[%clk 0:01:53]} 26. Rxe8+ {[%clk 0:00:31]}  Kh7 {[%clk 0:01:53]} 27. Nh3 {[%clk 0:00:25]}  Nb4 {[%clk 0:01:47]} 28. Rfe1 {[%clk 0:00:13]}  Nxc2 {[%clk 0:01:46]} 29. R1e7 {[%clk 0:00:12]}  Qb6 {[%clk 0:01:46]} 30. Bd5 {[%clk 0:00:12]}  c4 {[%clk 0:01:30]} 31. Bg8+ {[%clk 0:00:09]}  Kh8 {[%clk 0:01:30]} 32. Re6 {[%clk 0:00:09]}  Qxe6 {[%clk 0:01:17]} 33. Bxe6+ {[%clk 0:00:09]}  Kh7 {[%clk 0:01:18]} 34. Bg8+ {[%clk 0:00:08]}  Kh8 {[%clk 0:01:18]} 35. bxc4 {[%clk 0:00:09]}  Nb4 {[%clk 0:01:14]} 36. Bf7+ {[%clk 0:00:05]}  Kh7 {[%clk 0:01:13]} 37. Re6 {[%clk 0:00:06]}  Ng3 {[%clk 0:01:09]} 38. Bxg6+ {[%clk 0:00:07]}  Kg8 {[%clk 0:01:09]} 39. Ba3 {[%clk 0:00:05]}  Bf8 {[%clk 0:01:05]} 40. Bxb4 {[%clk 0:00:03]}  axb4 {[%clk 0:01:04]} 41. Kg2 {[%clk 0:00:04]}  b3 {[%clk 0:01:04]} 42. Kxg3 {[%clk 0:00:04]}  b2 {[%clk 0:01:02]} 43. Rb6 {[%clk 0:00:04]}  Ba3 {[%clk 0:01:02]} 44. Bxf5 {[%clk 0:00:03]}  Kf7 {[%clk 0:01:02]} 45. Rxb7+ {[%clk 0:00:03]}  Ke8 {[%clk 0:01:00]} 46. g6 {[%clk 0:00:04]}  Kd8 {[%clk 0:01:00]} 47. Rxb2 {[%clk 0:00:03]}  Bxb2 {[%clk 0:00:57]} 48. g7 {[%clk 0:00:04]} 1-0


[Site "https://www.chess.com"]

[Event "Titled Tuesday Blitz May 23 Early 2023"]
[White "Fernandez Garcia, Gumersindo"]
[Black "Gan-Od, Sereenen"]
[WhiteFideId "24516740"]
[BlackFideId "4901304"]
[WhiteElo "2093"]
[BlackElo "2265"]
[Result "0-1"]
[Round "02"]
[TimeControl "180+2"]
[Date "2023.05.23"]
[WhiteClock "0:00:09"]
[BlackClock "0:00:49"]

1. e4 {[%clk 0:02:55]}  c5 {[%clk 0:02:59]} 2. b4 {[%clk 0:02:46]}  cxb4 {[%clk 0:02:56]} 3. d4 {[%clk 0:02:46]}  e6 {[%clk 0:02:53]} 4. a3 {[%clk 0:02:45]}  Nf6 {[%clk 0:02:49]} 5. Bd3 {[%clk 0:02:42]}  d5 {[%clk 0:02:43]} 6. e5 {[%clk 0:02:36]}  Nfd7 {[%clk 0:02:42]} 7. Ne2 {[%clk 0:02:30]}  Nc6 {[%clk 0:02:39]} 8. O-O {[%clk 0:02:29]}  Be7 {[%clk 0:02:38]} 9. f4 {[%clk 0:02:25]}  O-O {[%clk 0:02:36]} 10. f5 {[%clk 0:02:18]}  a5 {[%clk 0:02:30]} 11. Nf4 {[%clk 0:02:14]}  exf5 {[%clk 0:02:25]} 12. Bxf5 {[%clk 0:02:12]}  Nb6 {[%clk 0:02:25]} 13. Bd3 {[%clk 0:02:06]}  Nxd4 {[%clk 0:02:24]} 14. Qh5 {[%clk 0:01:48]}  h6 {[%clk 0:02:08]} 15. Be3 {[%clk 0:01:40]}  Nc6 {[%clk 0:02:05]} 16. e6 {[%clk 0:01:33]}  Bxe6 {[%clk 0:01:56]} 17. Nxe6 {[%clk 0:01:19]}  fxe6 {[%clk 0:01:56]} 18. Nd2 {[%clk 0:01:13]}  Rf6 {[%clk 0:01:48]} 19. Rxf6 {[%clk 0:01:10]}  Bxf6 {[%clk 0:01:46]} 20. Rf1 {[%clk 0:01:10]}  Ne5 {[%clk 0:01:40]} 21. Rxf6 {[%clk 0:00:24]}  Qxf6 {[%clk 0:01:28]} 22. Bxb6 {[%clk 0:00:23]}  Nxd3 {[%clk 0:01:26]} 23. cxd3 {[%clk 0:00:23]}  bxa3 {[%clk 0:01:27]} 24. Qd1 {[%clk 0:00:16]}  a2 {[%clk 0:01:24]} 25. Nb3 {[%clk 0:00:17]}  a4 {[%clk 0:01:14]} 26. Na1 {[%clk 0:00:17]}  Rf8 {[%clk 0:01:03]} 27. Nc2 {[%clk 0:00:16]}  Qb2 {[%clk 0:00:57]} 28. Bd4 {[%clk 0:00:15]}  Qb1 {[%clk 0:00:57]} 29. Qe1 {[%clk 0:00:09]}  Qxc2 {[%clk 0:00:49]} 0-1


[Site "https://www.chess.com"]

[Event "Titled Tuesday Blitz May 23 Early 2023"]
[White "Van Foreest, Machteld"]
[Black "Djordjevic, Vuk"]
[WhiteFideId "1051563"]
[BlackFideId "902098"]
[WhiteElo "2018"]
[BlackElo "2452"]
[Result "1-0"]
[Round "02"]
[TimeControl "180+2"]
[Date "2023.05.23"]
[WhiteClock "0:00:09"]
[BlackClock "0:00:00"]

1. e4 {[%clk 0:03:00]}  d5 {[%clk 0:03:00]} 2. exd5 {[%clk 0:03:00]}  Qxd5 {[%clk 0:03:01]} 3. Nc3 {[%clk 0:02:59]}  Qd6 {[%clk 0:03:02]} 4. Nf3 {[%clk 0:02:58]}  Nf6 {[%clk 0:03:02]} 5. d4 {[%clk 0:02:59]}  c6 {[%clk 0:03:03]} 6. Be2 {[%clk 0:02:59]}  Bg4 {[%clk 0:03:03]} 7. O-O {[%clk 0:02:59]}  e6 {[%clk 0:03:03]} 8. h3 {[%clk 0:02:58]}  Bxf3 {[%clk 0:03:03]} 9. Bxf3 {[%clk 0:02:57]}  Nbd7 {[%clk 0:03:03]} 10. Bg5 {[%clk 0:02:54]}  Qc7 {[%clk 0:03:03]} 11. Qd2 {[%clk 0:02:49]}  Bd6 {[%clk 0:03:03]} 12. Rfe1 {[%clk 0:02:46]}  O-O {[%clk 0:03:03]} 13. Ne4 {[%clk 0:02:43]}  Nxe4 {[%clk 0:03:02]} 14. Bxe4 {[%clk 0:02:44]}  Rfe8 {[%clk 0:02:45]} 15. c4 {[%clk 0:02:39]}  Be7 {[%clk 0:02:39]} 16. Bxe7 {[%clk 0:02:23]}  Rxe7 {[%clk 0:02:40]} 17. d5 {[%clk 0:02:22]}  cxd5 {[%clk 0:02:37]} 18. cxd5 {[%clk 0:02:22]}  Nf6 {[%clk 0:02:21]} 19. d6 {[%clk 0:02:07]}  Nxe4 {[%clk 0:01:51]} 20. Rxe4 {[%clk 0:02:06]}  Qd8 {[%clk 0:01:51]} 21. Rg4 {[%clk 0:01:40]}  Rd7 {[%clk 0:01:48]} 22. Qd4 {[%clk 0:01:36]}  Qf8 {[%clk 0:01:29]} 23. Rd1 {[%clk 0:01:34]}  a6 {[%clk 0:01:18]} 24. Qe5 {[%clk 0:01:27]}  Rc8 {[%clk 0:01:13]} 25. Rd3 {[%clk 0:01:26]}  Rc6 {[%clk 0:01:05]} 26. Rgd4 {[%clk 0:01:11]}  Qe8 {[%clk 0:00:58]} 27. Rg4 {[%clk 0:01:06]}  Qf8 {[%clk 0:00:45]} 28. Rgd4 {[%clk 0:01:07]}  Kh8 {[%clk 0:00:35]} 29. Kh2 {[%clk 0:01:07]}  Qe8 {[%clk 0:00:33]} 30. Qh5 {[%clk 0:00:49]}  Qd8 {[%clk 0:00:24]} 31. Qe5 {[%clk 0:00:40]}  Qf6 {[%clk 0:00:17]} 32. Qxf6 {[%clk 0:00:40]}  gxf6 {[%clk 0:00:18]} 33. Kg3 {[%clk 0:00:40]}  Kg7 {[%clk 0:00:18]} 34. f4 {[%clk 0:00:41]}  f5 {[%clk 0:00:15]} 35. Kh4 {[%clk 0:00:40]}  Kf6 {[%clk 0:00:15]} 36. Kh5 {[%clk 0:00:41]}  Rc2 {[%clk 0:00:12]} 37. Rd2 {[%clk 0:00:39]}  Rxd2 {[%clk 0:00:11]} 38. Rxd2 {[%clk 0:00:40]}  Kg7 {[%clk 0:00:04]} 39. Kg5 {[%clk 0:00:39]}  f6+ {[%clk 0:00:04]} 40. Kh4 {[%clk 0:00:39]}  Kg6 {[%clk 0:00:04]} 41. g4 {[%clk 0:00:37]}  e5 {[%clk 0:00:05]} 42. Rd5 {[%clk 0:00:30]}  exf4 {[%clk 0:00:03]} 43. gxf5+ {[%clk 0:00:30]}  Kh6 {[%clk 0:00:03]} 44. Kg4 {[%clk 0:00:29]}  f3 {[%clk 0:00:03]} 45. Kxf3 {[%clk 0:00:29]}  Kg5 {[%clk 0:00:04]} 46. Kg3 {[%clk 0:00:26]}  Kh5 {[%clk 0:00:04]} 47. h4 {[%clk 0:00:24]}  Rg7+ {[%clk 0:00:05]} 48. Kh3 {[%clk 0:00:24]}  Rd7 {[%clk 0:00:06]} 49. a4 {[%clk 0:00:22]}  a5 {[%clk 0:00:04]} 50. b3 {[%clk 0:00:20]}  b6 {[%clk 0:00:04]} 51. Rd4 {[%clk 0:00:20]}  Kh6 {[%clk 0:00:03]} 52. Kg4 {[%clk 0:00:17]}  Kg7 {[%clk 0:00:03]} 53. Kh5 {[%clk 0:00:16]}  Kg8 {[%clk 0:00:01]} 54. Kh6 {[%clk 0:00:16]}  Kf8 {[%clk 0:00:02]} 55. Kh5 {[%clk 0:00:11]}  Kg7 {[%clk 0:00:02]} 56. Kg4 {[%clk 0:00:11]}  Kh6 {[%clk 0:00:02]} 57. Kf3 {[%clk 0:00:10]}  Kh5 {[%clk 0:00:02]} 58. Ke3 {[%clk 0:00:08]}  Kh6 {[%clk 0:00:02]} 59. Ke4 {[%clk 0:00:09]}  Kg7 {[%clk 0:00:01]} 60. Kd5 {[%clk 0:00:09]}  Kf7 {[%clk 0:00:02]} 61. Kc6 {[%clk 0:00:10]}  Ke8 {[%clk 0:00:02]} 62. Re4+ {[%clk 0:00:09]}  Kd8 {[%clk 0:00:03]} 63. Rg4 {[%clk 0:00:09]}  Kc8 {[%clk 0:00:00]} 64. Rg8+ {[%clk 0:00:09]} 1-0


[Site "https://www.chess.com"]

[Event "Titled Tuesday Blitz May 23 Early 2023"]
[White "Schmakel, Sam"]
[Black "Travadon, Loic"]
[WhiteFideId "2039311"]
[BlackFideId "26092131"]
[WhiteElo "2356"]
[BlackElo "2405"]
[Result "1-0"]
[Round "02"]
[TimeControl "180+2"]
[Date "2023.05.23"]
[WhiteClock "0:00:06"]
[BlackClock "0:00:00"]

1. d4 {[%clk 0:03:00]}  Nf6 {[%clk 0:02:55]} 2. c4 {[%clk 0:03:01]}  e6 {[%clk 0:02:54]} 3. Nf3 {[%clk 0:03:01]}  d5 {[%clk 0:02:53]} 4. Nc3 {[%clk 0:03:01]}  h6 {[%clk 0:02:52]} 5. g3 {[%clk 0:02:54]}  Bb4 {[%clk 0:02:51]} 6. Bg2 {[%clk 0:02:53]}  dxc4 {[%clk 0:02:47]} 7. Qa4+ {[%clk 0:02:47]}  Nc6 {[%clk 0:02:46]} 8. Ne5 {[%clk 0:02:47]}  Bxc3+ {[%clk 0:02:39]} 9. bxc3 {[%clk 0:02:48]}  Bd7 {[%clk 0:02:29]} 10. Nxc6 {[%clk 0:02:42]}  bxc6 {[%clk 0:02:25]} 11. Bxc6 {[%clk 0:02:28]}  O-O {[%clk 0:01:38]} 12. Qxc4 {[%clk 0:02:27]}  Bxc6 {[%clk 0:01:32]} 13. Qxc6 {[%clk 0:02:28]}  Re8 {[%clk 0:01:32]} 14. O-O {[%clk 0:02:08]}  Qd5 {[%clk 0:01:31]} 15. Qxc7 {[%clk 0:01:51]}  Rac8 {[%clk 0:01:30]} 16. Qxa7 {[%clk 0:01:50]}  Ne4 {[%clk 0:01:25]} 17. Re1 {[%clk 0:01:30]}  Rxc3 {[%clk 0:01:24]} 18. f3 {[%clk 0:01:20]}  Nd6 {[%clk 0:01:21]} 19. Bd2 {[%clk 0:01:04]}  Rc4 {[%clk 0:01:17]} 20. Be3 {[%clk 0:01:02]}  Nf5 {[%clk 0:01:13]} 21. Bf2 {[%clk 0:01:01]}  Nxd4 {[%clk 0:01:10]} 22. Rad1 {[%clk 0:00:44]}  e5 {[%clk 0:01:04]} 23. Kg2 {[%clk 0:00:31]}  Ra8 {[%clk 0:00:57]} 24. Qe7 {[%clk 0:00:19]}  Rxa2 {[%clk 0:00:58]} 25. e4 {[%clk 0:00:07]}  Qe6 {[%clk 0:00:58]} 26. Qd8+ {[%clk 0:00:03]}  Kh7 {[%clk 0:00:56]} 27. Rf1 {[%clk 0:00:03]}  Qf6 {[%clk 0:00:54]} 28. Rd3 {[%clk 0:00:03]}  Rcc2 {[%clk 0:00:52]} 29. Qd5 {[%clk 0:00:03]}  Qb6 {[%clk 0:00:21]} 30. Qxe5 {[%clk 0:00:03]}  Ne6 {[%clk 0:00:17]} 31. Qf5+ {[%clk 0:00:03]}  Kg8 {[%clk 0:00:16]} 32. Qd5 {[%clk 0:00:01]}  Rxf2+ {[%clk 0:00:16]} 33. Rxf2 {[%clk 0:00:01]}  Rxf2+ {[%clk 0:00:17]} 34. Kh3 {[%clk 0:00:01]}  Ng5+ {[%clk 0:00:16]} 35. Kg4 {[%clk 0:00:02]}  Qe6+ {[%clk 0:00:16]} 36. Qxe6 {[%clk 0:00:02]}  fxe6 {[%clk 0:00:17]} 37. e5 {[%clk 0:00:03]}  Rxh2 {[%clk 0:00:17]} 38. f4 {[%clk 0:00:03]}  Nf7 {[%clk 0:00:16]} 39. Rd7 {[%clk 0:00:03]}  h5+ {[%clk 0:00:13]} 40. Kf3 {[%clk 0:00:03]}  g6 {[%clk 0:00:13]} 41. Re7 {[%clk 0:00:04]}  Kg7 {[%clk 0:00:12]} 42. Rxe6 {[%clk 0:00:04]}  Ra2 {[%clk 0:00:11]} 43. Re7 {[%clk 0:00:05]}  Ra3+ {[%clk 0:00:11]} 44. Ke4 {[%clk 0:00:04]}  Kf8 {[%clk 0:00:11]} 45. Rc7 {[%clk 0:00:04]}  Ra4+ {[%clk 0:00:11]} 46. Kd5 {[%clk 0:00:04]}  Nd8 {[%clk 0:00:11]} 47. e6 {[%clk 0:00:03]}  Ra5+ {[%clk 0:00:10]} 48. Kd6 {[%clk 0:00:03]}  Ra6+ {[%clk 0:00:10]} 49. Kd7 {[%clk 0:00:04]}  Nxe6 {[%clk 0:00:10]} 50. Rc4 {[%clk 0:00:04]}  Kf7 {[%clk 0:00:08]} 51. Re4 {[%clk 0:00:05]}  Ra7+ {[%clk 0:00:08]} 52. Kd6 {[%clk 0:00:05]}  Re7 {[%clk 0:00:08]} 53. Re5 {[%clk 0:00:03]}  Kf6 {[%clk 0:00:07]} 54. Re1 {[%clk 0:00:03]}  Re8 {[%clk 0:00:06]} 55. Kd7 {[%clk 0:00:03]}  Kf7 {[%clk 0:00:06]} 56. Kd6 {[%clk 0:00:03]}  Ng7 {[%clk 0:00:05]} 57. Ra1 {[%clk 0:00:02]}  Rd8+ {[%clk 0:00:05]} 58. Ke5 {[%clk 0:00:03]}  Re8+ {[%clk 0:00:05]} 59. Kd5 {[%clk 0:00:03]}  Nf5 {[%clk 0:00:06]} 60. Ra7+ {[%clk 0:00:03]}  Re7 {[%clk 0:00:07]} 61. Ra3 {[%clk 0:00:04]}  Kf6 {[%clk 0:00:06]} 62. Ra6+ {[%clk 0:00:03]}  Kg7 {[%clk 0:00:06]} 63. Ra3 {[%clk 0:00:04]}  Kh6 {[%clk 0:00:06]} 64. Rb3 {[%clk 0:00:05]}  Rd7+ {[%clk 0:00:06]} 65. Ke5 {[%clk 0:00:05]}  Rd1 {[%clk 0:00:06]} 66. Kf6 {[%clk 0:00:04]}  Rd6+ {[%clk 0:00:05]} 67. Ke5 {[%clk 0:00:04]}  Rd8 {[%clk 0:00:05]} 68. Kf6 {[%clk 0:00:04]}  Rf8+ {[%clk 0:00:04]} 69. Ke5 {[%clk 0:00:04]}  Kg7 {[%clk 0:00:04]} 70. Rb7+ {[%clk 0:00:04]}  Rf7 {[%clk 0:00:05]} 71. Rb3 {[%clk 0:00:05]}  Re7+ {[%clk 0:00:04]} 72. Kd5 {[%clk 0:00:06]}  Re3 {[%clk 0:00:05]} 73. Rb7+ {[%clk 0:00:05]}  Kh6 {[%clk 0:00:05]} 74. Rb6 {[%clk 0:00:06]}  Rxg3 {[%clk 0:00:04]} 75. Ke5 {[%clk 0:00:06]}  Rg4 {[%clk 0:00:04]} 76. Rb8 {[%clk 0:00:05]}  h4 {[%clk 0:00:04]} 77. Kf6 {[%clk 0:00:05]}  Kh7 {[%clk 0:00:03]} 78. Rb7+ {[%clk 0:00:06]}  Kh8 {[%clk 0:00:02]} 79. Rb8+ {[%clk 0:00:06]}  Kh7 {[%clk 0:00:00]} 80. Rb7+ {[%clk 0:00:06]} 1-0


[Site "https://www.chess.com"]

[Event "Titled Tuesday Blitz May 23 Early 2023"]
[White "Volkov, Maksim"]
[Black "Topalov, Aleksandar"]
[WhiteFideId "54123070"]
[BlackFideId "925659"]
[WhiteElo "2297"]
[BlackElo "2151"]
[Result "1-0"]
[Round "02"]
[TimeControl "180+2"]
[Date "2023.05.23"]
[WhiteClock "0:00:17"]
[BlackClock "0:00:04"]

1. d4 {[%clk 0:03:00]}  Nf6 {[%clk 0:02:28]} 2. c4 {[%clk 0:03:00]}  c5 {[%clk 0:02:25]} 3. d5 {[%clk 0:03:00]}  d6 {[%clk 0:02:21]} 4. Nc3 {[%clk 0:02:59]}  g6 {[%clk 0:02:20]} 5. Nf3 {[%clk 0:02:57]}  Bg7 {[%clk 0:02:20]} 6. g3 {[%clk 0:02:58]}  O-O {[%clk 0:02:21]} 7. Bg2 {[%clk 0:02:57]}  Na6 {[%clk 0:02:21]} 8. O-O {[%clk 0:02:57]}  Nc7 {[%clk 0:02:21]} 9. a4 {[%clk 0:02:53]}  Rb8 {[%clk 0:02:21]} 10. e4 {[%clk 0:02:52]}  b6 {[%clk 0:02:21]} 11. Re1 {[%clk 0:02:51]}  a6 {[%clk 0:02:21]} 12. e5 {[%clk 0:02:44]}  Nfe8 {[%clk 0:02:18]} 13. Bf4 {[%clk 0:02:28]}  Bg4 {[%clk 0:02:15]} 14. h3 {[%clk 0:02:26]}  Bxf3 {[%clk 0:02:15]} 15. Qxf3 {[%clk 0:02:27]}  b5 {[%clk 0:02:13]} 16. cxb5 {[%clk 0:02:18]}  axb5 {[%clk 0:02:13]} 17. a5 {[%clk 0:02:18]}  b4 {[%clk 0:02:13]} 18. Na4 {[%clk 0:02:16]}  Nb5 {[%clk 0:02:11]} 19. exd6 {[%clk 0:02:05]}  exd6 {[%clk 0:02:10]} 20. Nb6 {[%clk 0:01:59]}  Nd4 {[%clk 0:02:01]} 21. Qd3 {[%clk 0:01:56]}  Nc7 {[%clk 0:02:00]} 22. h4 {[%clk 0:01:49]}  Ncb5 {[%clk 0:01:59]} 23. Bh3 {[%clk 0:01:47]}  Rb7 {[%clk 0:01:56]} 24. Nc4 {[%clk 0:01:37]}  Ra7 {[%clk 0:01:51]} 25. h5 {[%clk 0:01:33]}  g5 {[%clk 0:01:43]} 26. Bd2 {[%clk 0:01:26]}  h6 {[%clk 0:01:40]} 27. f4 {[%clk 0:01:20]}  gxf4 {[%clk 0:01:18]} 28. Bxf4 {[%clk 0:01:20]}  b3 {[%clk 0:01:17]} 29. Rf1 {[%clk 0:01:09]}  Re8 {[%clk 0:01:13]} 30. Bg4 {[%clk 0:01:02]}  Qe7 {[%clk 0:01:07]} 31. Kf2 {[%clk 0:00:42]}  Qf6 {[%clk 0:01:00]} 32. Rae1 {[%clk 0:00:39]}  Rae7 {[%clk 0:00:54]} 33. Rxe7 {[%clk 0:00:37]}  Qxe7 {[%clk 0:00:44]} 34. Ne3 {[%clk 0:00:31]}  Qe4 {[%clk 0:00:17]} 35. Qxe4 {[%clk 0:00:28]}  Rxe4 {[%clk 0:00:17]} 36. a6 {[%clk 0:00:29]}  Re7 {[%clk 0:00:16]} 37. Nc4 {[%clk 0:00:22]}  Ra7 {[%clk 0:00:12]} 38. Ra1 {[%clk 0:00:22]}  Nc2 {[%clk 0:00:11]} 39. Ra5 {[%clk 0:00:22]}  Nbd4 {[%clk 0:00:10]} 40. Bxd6 {[%clk 0:00:21]}  Nb5 {[%clk 0:00:07]} 41. Rxb5 {[%clk 0:00:17]}  Rxa6 {[%clk 0:00:04]} 42. Rb8+ {[%clk 0:00:17]} 1-0


[Site "https://www.chess.com"]

[Event "Titled Tuesday Blitz May 23 Early 2023"]
[White "Kopczynski, Michal"]
[Black "Begmuratov, Alisher"]
[WhiteFideId "1124200"]
[BlackFideId "14203367"]
[WhiteElo "2212"]
[BlackElo "2387"]
[Result "1/2-1/2"]
[Round "02"]
[TimeControl "180+2"]
[Date "2023.05.23"]
[WhiteClock "0:00:04"]
[BlackClock "0:00:30"]

1. e4 {[%clk 0:03:00]}  c5 {[%clk 0:02:59]} 2. d4 {[%clk 0:03:01]}  cxd4 {[%clk 0:02:58]} 3. c3 {[%clk 0:03:01]}  d5 {[%clk 0:02:59]} 4. exd5 {[%clk 0:02:58]}  Qxd5 {[%clk 0:03:00]} 5. cxd4 {[%clk 0:02:58]}  Nc6 {[%clk 0:03:00]} 6. Nf3 {[%clk 0:02:58]}  e6 {[%clk 0:03:00]} 7. Be2 {[%clk 0:02:58]}  Nf6 {[%clk 0:03:00]} 8. O-O {[%clk 0:02:58]}  Be7 {[%clk 0:03:00]} 9. Nc3 {[%clk 0:02:57]}  Qd8 {[%clk 0:03:00]} 10. Bg5 {[%clk 0:02:54]}  O-O {[%clk 0:03:00]} 11. Rc1 {[%clk 0:02:53]}  Nb4 {[%clk 0:02:59]} 12. Ne5 {[%clk 0:02:47]}  Nbd5 {[%clk 0:02:57]} 13. h3 {[%clk 0:02:46]}  Nxc3 {[%clk 0:02:51]} 14. bxc3 {[%clk 0:02:44]}  Nd7 {[%clk 0:02:51]} 15. Bxe7 {[%clk 0:02:39]}  Qxe7 {[%clk 0:02:51]} 16. Nd3 {[%clk 0:02:35]}  Nf6 {[%clk 0:02:47]} 17. Bf3 {[%clk 0:02:34]}  Rd8 {[%clk 0:02:46]} 18. Qb3 {[%clk 0:02:32]}  Rb8 {[%clk 0:02:45]} 19. Rfe1 {[%clk 0:02:30]}  b6 {[%clk 0:02:44]} 20. Ne5 {[%clk 0:02:28]}  Bb7 {[%clk 0:02:42]} 21. Bxb7 {[%clk 0:02:21]}  Qxb7 {[%clk 0:02:43]} 22. Qa4 {[%clk 0:02:19]}  Rbc8 {[%clk 0:02:42]} 23. Re3 {[%clk 0:02:12]}  Rc7 {[%clk 0:02:38]} 24. Rf3 {[%clk 0:02:07]}  Rdc8 {[%clk 0:02:33]} 25. c4 {[%clk 0:02:01]}  b5 {[%clk 0:02:31]} 26. Qb4 {[%clk 0:01:53]}  bxc4 {[%clk 0:02:30]} 27. Rxc4 {[%clk 0:01:15]}  Qxb4 {[%clk 0:02:26]} 28. Rxb4 {[%clk 0:01:16]}  Nd5 {[%clk 0:02:24]} 29. Ra4 {[%clk 0:01:14]}  f6 {[%clk 0:02:24]} 30. Nd3 {[%clk 0:01:10]}  Nc3 {[%clk 0:02:19]} 31. Rb4 {[%clk 0:00:53]}  Ne2+ {[%clk 0:02:08]} 32. Kh2 {[%clk 0:00:52]}  Nc3 {[%clk 0:01:59]} 33. Nc5 {[%clk 0:00:37]}  Nxa2 {[%clk 0:01:58]} 34. Rb2 {[%clk 0:00:37]}  Nc1 {[%clk 0:01:55]} 35. Nxe6 {[%clk 0:00:23]}  Re7 {[%clk 0:01:54]} 36. Nc5 {[%clk 0:00:22]}  Rd8 {[%clk 0:01:40]} 37. Rc3 {[%clk 0:00:18]}  Ne2 {[%clk 0:01:30]} 38. Re3 {[%clk 0:00:18]}  Rxe3 {[%clk 0:01:28]} 39. fxe3 {[%clk 0:00:19]}  Nc3 {[%clk 0:01:27]} 40. Rb3 {[%clk 0:00:19]}  Nd5 {[%clk 0:01:26]} 41. Ra3 {[%clk 0:00:19]}  Ra8 {[%clk 0:01:24]} 42. Kg3 {[%clk 0:00:19]}  a5 {[%clk 0:01:23]} 43. Kf3 {[%clk 0:00:20]}  Nb6 {[%clk 0:01:20]} 44. Ke4 {[%clk 0:00:19]}  Nc4 {[%clk 0:01:15]} 45. Ra2 {[%clk 0:00:19]}  Kf7 {[%clk 0:01:11]} 46. Kd3 {[%clk 0:00:19]}  Nd6 {[%clk 0:01:10]} 47. Ra4 {[%clk 0:00:18]}  Re8 {[%clk 0:01:05]} 48. e4 {[%clk 0:00:15]}  Ra8 {[%clk 0:01:04]} 49. Nb3 {[%clk 0:00:15]}  Re8 {[%clk 0:01:03]} 50. Nc5 {[%clk 0:00:12]}  Ra8 {[%clk 0:01:02]} 51. Nb3 {[%clk 0:00:13]}  Rb8 {[%clk 0:01:00]} 52. Nxa5 {[%clk 0:00:12]}  Rb2 {[%clk 0:01:00]} 53. Nc4 {[%clk 0:00:08]}  Nxc4 {[%clk 0:00:55]} 54. Rxc4 {[%clk 0:00:07]}  Rxg2 {[%clk 0:00:56]} 55. Rc7+ {[%clk 0:00:07]}  Ke6 {[%clk 0:00:54]} 56. d5+ {[%clk 0:00:07]}  Kd6 {[%clk 0:00:53]} 57. Rc6+ {[%clk 0:00:07]}  Kd7 {[%clk 0:00:53]} 58. Ra6 {[%clk 0:00:06]}  h5 {[%clk 0:00:52]} 59. Ra7+ {[%clk 0:00:05]}  Kd6 {[%clk 0:00:52]} 60. Ra6+ {[%clk 0:00:06]}  Kc5 {[%clk 0:00:52]} 61. Rc6+ {[%clk 0:00:05]}  Kb5 {[%clk 0:00:52]} 62. Rc7 {[%clk 0:00:06]}  Rg3+ {[%clk 0:00:40]} 63. Kd4 {[%clk 0:00:06]}  Rxh3 {[%clk 0:00:38]} 64. Rxg7 {[%clk 0:00:05]}  Rh1 {[%clk 0:00:38]} 65. Rf7 {[%clk 0:00:04]}  h4 {[%clk 0:00:38]} 66. Rxf6 {[%clk 0:00:04]}  h3 {[%clk 0:00:38]} 67. Rh6 {[%clk 0:00:04]}  Rd1+ {[%clk 0:00:35]} 68. Ke5 {[%clk 0:00:03]}  Rd3 {[%clk 0:00:35]} 69. d6 {[%clk 0:00:03]}  Kc6 {[%clk 0:00:35]} 70. Rh7 {[%clk 0:00:03]}  Rxd6 {[%clk 0:00:33]} 71. Rxh3 {[%clk 0:00:03]}  Rg6 {[%clk 0:00:30]} 72. Rc3+ {[%clk 0:00:04]}  Kd7 {[%clk 0:00:30]} 73. Kf5 {[%clk 0:00:04]}  Ra6 {[%clk 0:00:29]} 74. Rb3 {[%clk 0:00:04]}  Ke7 {[%clk 0:00:29]} 75. Rb7+ {[%clk 0:00:03]}  Ke8 {[%clk 0:00:29]} 76. e5 {[%clk 0:00:04]}  Rc6 {[%clk 0:00:29]} 77. e6 {[%clk 0:00:03]}  Rc1 {[%clk 0:00:29]} 78. Rb8+ {[%clk 0:00:03]}  Ke7 {[%clk 0:00:29]} 79. Rb7+ {[%clk 0:00:04]}  Ke8 {[%clk 0:00:29]} 80. Rb8+ {[%clk 0:00:04]}  Ke7 {[%clk 0:00:29]} 81. Rb7+ {[%clk 0:00:04]}  Ke8 {[%clk 0:00:30]} 1/2-1/2


[Site "https://www.chess.com"]